Cogmind - Beta 11.1 *** ADVENTURER MODE // 2022.11.07 @ 00:32:51 Player: WimP_Lo Result: Destroyed by D-53 Grenadier with Mini Grenade Launcher Performance ------------- Evolutions (0) 0 Regions Visited (2) 400 Robots Destroyed (15) 75 Value Destroyed (359) 359 Prototype IDs (2) 40 Alien Tech Used (0) 0 Bonus (0) 0 TOTAL SCORE: 874 Bonus ------- None Cogmind --------- Core Integrity 0/250 Matter 190/300 Energy 100/100 System Corruption 1% Temperature Warm (133) Movement Core (100) Ox1 Location -10/Mines Parts ------- > --- POWER (1) -------- (None) > --- PROPULSION (2) --- (None) > --- UTILITY (2) ------ (None) > --- WEAPON (2) ------- Small Laser Light Cannon > --- INVENTORY (5) ---- Ion Engine Wheel Medium Armor Plating Grenade Launcher Datajack Peak State ------------ > --- POWER ------------ Light Ion Engine > --- PROPULSION ------- Wheel Wheel > --- UTILITY ---------- Heat Sink Improved Terrain Scanner > --- WEAPON ----------- Improved Light Cannon Improved Light Cannon > --- INVENTORY -------- Light Ion Engine Wheel Grenade Launcher [Rating: 11] Favorites ----------- Power Light Ion Engine Engine Light Ion Engine Propulsion Wheel Wheel Wheel Hover Unit Improved Hover Unit Flight Unit Flight Unit Utility Improved Terrain Scanner Device Improved Terrain Scanner Storage Small Storage Unit Processor Signal Interpreter Protection Weapon Shielding Weapon Light Cannon Energy Gun Small Laser Ballistic Gun Assault Rifle Ballistic Cannon Light Cannon Build | -11 -10 -10 ------- Run | Scr Mat Min Slots Evolved . | . . . Power . | . . . Propulsion . | . . . Utility . | . . . Weapon . | . . . Parts Attached 31 | 6 23 2 Power 2 | 1 1 . Engine 2 | 1 1 . Core . | . . . Reactor . | . . . Propulsion 11 | 2 9 . Treads . | . . . Leg . | . . . Wheel 6 | 2 4 . Hover 2 | . 2 . Flight 3 | . 3 . Utility 9 | 1 7 1 Device 4 | . 4 . Storage 1 | 1 . . Processor 2 | . 2 . Hackware . | . . . Protection 2 | . 1 1 Artifact . | . . . Weapon 9 | 2 6 1 Energy Gun 2 | 1 1 . Energy Cannon . | . . . Ballistic Gun 1 | 1 . . Ballistic Cannon 6 | . 5 1 Launcher . | . . . Special Weapon . | . . . Impact Weapon . | . . . Slashing Weapon . | . . . Piercing Weapon . | . . . Special Melee Weapon . | . . . Unidentified Prototypes . | . . . Parts Lost 5 | . . 5 Power 1 | . . 1 Propulsion 2 | . . 2 Utility 2 | . . 2 Weapon . | . . . Highest Loss Streak 5 | . . 5 To Critical Strikes . | . . . Average Slot Usage (%) 94 | . 94 92 Engine 13 | . 14 13 Wheel 14 | . 17 . Hover 11 | . 7 26 Flight 1 | . 2 . Device 13 | . 15 4 Storage 2 | . 3 . Processor 7 | . 7 11 Protection 2 | . . 9 Energy Gun 6 | . 5 14 Ballistic Cannon 18 | . 19 14 Naked Turns . | . . . Heaviest Build 14 | 12 14 10 Greatest Support 20 | 20 20 14 Greatest Overweight (x) 3 | 1 2 3 Average Overweight (x) . | . . . Largest Inventory Capacity 8 | 8 8 5 Average Capacity 5 | 6 5 5 Most Carried 8 | 5 8 5 Average Carried 4 | 3 3 4 Final Capacity 8 | 8 5 5 Final Carried 5 | 2 5 5 Class Distribution -------------------- 81% | Mutant 18% | Scavenger-Mutant Dominant Class ---------------- Mutant | -10/Materials Mutant | -10/Mines Resources | -11 -10 -10 ----------- Run | Scr Mat Min Matter Collected 559 | 260 206 93 Remotely . | . . . Salvage Created 297 | . 204 93 Parts 28 | . 25 3 Haulers Intercepted . | . . . Recyclers Shooed . | . . . Parts Field Recycled . | . . . Retrieved Matter . | . . . Parts Self-Destructed . | . . . Prevented . | . . . Kills | -11 -10 -10 ------- Run | Scr Mat Min Combat Hostiles Destroyed 17 | . 10 7 Guns 5 | . 1 4 Cannons 11 | . 8 3 AOE 1 | . 1 . Classes Destroyed 5 | . 4 1 Tunneler 1 | . 1 . Watcher 2 | . 2 . Swarmer 6 | . 6 . Grunt 6 | . 4 2 Assembled 5 | . . 5 Best Kill Streak 5 | . 3 5 Combat Bots Only 5 | . 3 5 Max Kills in Single Turn 2 | . 2 1 Gunslinging . | . . . Exploded 1 | . 1 . Melee . | . . . Uniques/NPCs Destroyed . | . . . Combat | -11 -10 -10 -------- Run | Scr Mat Min Damage Taken 730 | . 183 547 Core 250 | . 33 217 Absorbed by Shields . | . . . Redirected to Shielding 34 | . . 34 Core Remaining (%) 100 | 100 . . Volleys Fired 35 | . 19 16 Largest 2 | . 2 2 Hottest 75 | . 75 75 Shots Fired 69 | . 37 32 Gun 23 | . 7 16 Cannon 46 | . 30 16 Launcher . | . . . Special . | . . . Kinetic 46 | . 30 16 Thermal 18 | . 2 16 Explosive . | . . . Electromagnetic 5 | . 5 . Robot Hit Streak 11 | . 10 11 Robot Miss Streak 2 | . 2 1 Penetration Max . | . . . Secondary Targets . | . . . Shots Hit Robots 47 | . 23 24 Core Hits 28 | . 15 13 Critical Kills . | . . . Critical Parts Destroyed . | . . . Critical Strikes 1 | . 1 . Corrupt 1 | . 1 . Melee Attacks . | . . . Impact . | . . . Slashing . | . . . Piercing . | . . . Sneak Attacks . | . . . Combat Hostiles . | . . . Follow-up Attacks . | . . . Damage Inflicted 937 | . 562 375 Guns 174 | . 63 111 Cannons 670 | . 406 264 Explosions 93 | . 93 . Melee . | . . . Ramming . | . . . Kinetic 670 | . 406 264 Thermal 204 | . 93 111 Explosive . | . . . Electromagnetic 63 | . 63 . Impact . | . . . Slashing . | . . . Piercing . | . . . Highest Corruption 1 | . . 1 Average Corruption 1 | . . 1 Corruption Purged . | . . . Corruption Blocked . | . . . Overload Shots . | . . . Overflow Damage 10 | . 2 8 Projectiles 10 | . 2 8 Explosions . | . . . Melee . | . . . Knockbacks 4 | . 3 1 Impact . | . . . Kinetic 4 | . 3 1 Secondary . | . . . Self-Inflicted Damage 40 | . 40 . Shots 1 | . 1 . Rammed . | . . . Targets Rammed . | . . . Kicked . | . . . Crushed . | . . . Highest Temperature 258 | . 99 258 Average Temperature 82 | . 34 120 Received Heat Transfer 112 | . 60 52 Siege Activations . | . . . Robots Corrupted . | . . . Combat Hostiles . | . . . Parts Fried . | . . . Impact Corruptions . | . . . Robots Melted . | . . . Combat Hostiles . | . . . Parts Melted . | . . . Heat Transferred 350 | . 100 250 Parts Sabotaged . | . . . Parts Stolen . | . . . Parts Stripped . | . . . Power Chain Reactions 1 | . 1 . Missiles Intercepted . | . . . Alert | -11 -10 -10 ------- Run | Scr Mat Min Peak Influence 266 | . 266 87 Initial 22 | . . 22 Average 111 | . 128 67 Maximum Alert Level 1 | . 1 . Low Security (%) 77 | 100 70 100 Level 1 22 | . 29 . Level 2 . | . . . Level 3 . | . . . Level 4 . | . . . Level 5 . | . . . High Security . | . . . Max Security . | . . . Squads Dispatched . | . . . Investigation . | . . . Extermination . | . . . Reinforcement . | . . . Assault . | . . . Garrison . | . . . Intercept . | . . . Searches Triggered . | . . . Construction Impeded . | . . . Haulers Reinforced . | . . . Active Scanning Responses . | . . . Cargo Convoy Interrupts . | . . . Stealth | -11 -10 -10 --------- Run | Scr Mat Min Distress Signals 1 | . 1 . Communications Jammed . | . . . Distress Signals . | . . . Times Spotted 40 | . 17 23 Peak Tracking Total 14 | . 6 14 Tactical Retreats 1 | . 1 . Traps | -11 -10 -10 ------- Run | Scr Mat Min Traps Triggered . | . . . Indirectly . | . . . Trap Hack Attempts . | . . . Triggered . | . . . Disarmed . | . . . Reprogrammed . | . . . Reused . | . . . Traps Extracted . | . . . Installed . | . . . Triggered . | . . . Machines | -11 -10 -10 ---------- Run | Scr Mat Min Machines Disabled 3 | . 3 . Max in Single Turn 1 | . 1 . Machines Sabotaged . | . . . Garrisons Compromised . | . . . Overloaded Fab Kills . | . . . Hacking | -11 -10 -10 --------- Run | Scr Mat Min Machines Accessed 7 | . 7 . Terminals 5 | . 5 . Fabricators . | . . . Repair Stations . | . . . Recycling Units 2 | . 2 . Scanalyzers . | . . . Garrison Access . | . . . Total Hacks 24 | . 24 . Successful 19 | . 19 . Failed 5 | . 5 . Catastrophic . | . . . Database Lockouts . | . . . Manual . | . . . Terminals 20 | . 20 . Fabricators . | . . . Repair Stations . | . . . Recycling Units 4 | . 4 . Scanalyzers . | . . . Garrison Access . | . . . Terminal Hacks 15 | . 15 . Record 1 | . 1 . Prototype ID Bank 1 | . 1 . Branch Access Points 1 | . 1 . Alert Level 2 | . 2 . Unreport Threat 1 | . 1 . Locate Traps 2 | . 2 . Dispatch Records 2 | . 2 . Hauler Manifests 1 | . 1 . Zone Layout 4 | . 4 . Fabricator Hacks . | . . . Repair Station Hacks . | . . . Recycling Unit Hacks 4 | . 4 . Report Inventory 2 | . 2 . Retrieve Components 2 | . 2 . Scanalyzer . | . . . Garrison Access Hacks . | . . . Unauthorized Hacks . | . . . Terminals . | . . . Fabricators . | . . . Repair Stations . | . . . Recycling Units . | . . . Scanalyzers . | . . . Garrison Access . | . . . Data Cores Recovered . | . . . Used . | . . . Hacking Detections 4 | . 4 . Full Trace Events 1 | . 1 . Feedback Events . | . . . Feedback Blocked . | . . . Robot Schematics Acquired . | . . . Robots Built . | . . . Authchips . | . . . Time . | . . . Total Robot Build Rating . | . . . Part Schematics Acquired . | . . . Parts Built . | . . . Authchips . | . . . Time . | . . . Total Part Build Rating . | . . . Parts Repaired . | . . . Time . | . . . Parts Recycled . | . . . Recycled Matter . | . . . Retrieved Matter . | . . . Retrieved Components 11 | . 11 . Parts Scanalyzed . | . . . Part Schematics Acquired . | . . . Parts Damaged . | . . . Bothacking | -11 -10 -10 ------------ Run | Scr Mat Min Used RIF Installer . | . . . Robots Hacked . | . . . Non-combat . | . . . Combat . | . . . Robot Hacks Applied . | . . . Relay Couplers Released . | . . . Fabnet Peak Effective % . | . . . Robots Rewired . | . . . Allies Hacked . | . . . Hacks Repelled . | . . . Allies | -11 -10 -10 -------- Run | Scr Mat Min Total Allies . | . . . Largest Group . | . . . Highest-Rated Group . | . . . Highest-Rated Ally . | . . . Total Orders . | . . . Ally Attacks . | . . . Total Damage . | . . . Kills . | . . . Allies Corrupted . | . . . Allies Melted . | . . . Intel | -11 -10 -10 ------- Run | Scr Mat Min Robot Analysis Total . | . . . Derelict Logs Recovered 1 | . . 1 Drone Launches . | . . . Drone Recoveries . | . . . Exploration | -11 -10 -10 ------------- Run | Scr Mat Min Turns Passed 750 | 34 578 138 Spaces Moved 766 | 32 602 132 Core 24 | 19 1 4 Treads . | . . . Legs . | . . . Wheels 362 | 13 349 . Hover 341 | . 213 128 Flight 39 | . 39 . Fastest Speed 37 | 50 37 56 Average Speed 67 | 66 69 59 Slowest Speed 200 | 100 150 200 Overloaded Moves . | . . . Propulsion Burnouts . | . . . Robots Hopped . | . . . Cave-ins Triggered . | . . . Exploration Rate (%) 41 | 2 88 34 Regions Visited 2 Branch Regions 1 Pre-discovered Areas 1 | . . 1 Known Exits Taken 1 | . 1 . Unknown Exits Taken 1 | 1 . . Scrap Searched . | . . . Spaces Dug . | . . . Terrain Destroyed 8 | . 8 . Melee . | . . . Projectile . | . . . AOE 8 | . 8 . Terrain Rammed . | . . . Walls Destroyed . | . . . Machines Disabled . | . . . Actions | -11 -10 -10 --------- Run | Scr Mat Min Total 937 | 42 735 160 Wait 34 | . 29 5 Move 764 | 31 601 132 Hop . | . . . Pick Up 38 | 5 31 2 Fast Attach 5 | 3 1 1 Attach 19 | 3 15 1 Detach 4 | . 4 . Swap 7 | . 7 . Drop 31 | . 28 3 Fire 35 | . 19 16 Melee . | . . . Ram . | . . . Kick . | . . . Crush . | . . . Escape Stasis . | . . . Rewire . | . . . Trap . | . . . Miscellaneous . | . . . Route ------- -11/Scrapyard -10/Materials (discovered 5 exits: *Mat x3 / *Min x2) -10/Mines (discovered 1 exit: *Mat) History --------- Turn | Location | Event 7 | -11/Scrapyard | Discovered new exit (range 16) 35 | -11/Scrapyard | Entered Materials 79 | -10/Materials | Identified exit to Mines 221 | -10/Materials | Discovered new exit (range 10) 351 | -10/Materials | Discovered new exit (range 3) 353 | -10/Materials | Identified exit to Materials 590 | -10/Materials | Discovered exit to Materials (range 14) 613 | -10/Materials | Entered Mines 637 | -10/Mines | Learned location of Zion (-7) 640 | -10/Mines | Build established: Mutant 690 | -10/Mines | Discovered exit to Materials (range 16) 700 | -10/Mines | Assembled infested the area 744 | -10/Mines | Core integrity fell below 50% 750 | -10/Mines | Core integrity fell below 20% 751 | -10/Mines | Destroyed by D-53 Grenadier with Mini Grenade Launcher Last Messages --------------- as-57315 destroyed. as-46052 destroyed. The unstable cave ceiling collapses. as-22092 destroyed. as-21340 destroyed. as-30357 destroyed. The unstable cave ceiling collapses. Ion Engine destroyed. Weapon Shielding destroyed. as-75642 destroyed. as-43952 destroyed. as-99318 destroyed. The unstable cave ceiling collapses. as-90330 destroyed. The unstable cave ceiling collapses. U-05 Engineer lays Concrete. [Achievement: First Step to Greatness] Important note for Steam players: Cogmind player global achievement rates displayed by Steam are all significantly underreported, in some cases by a huge margin, due to how they are calculated by Valve. Map ----- +----------------------------------------------------+ | ????????????????????# ??# #????? | | ??????????????????? ???# ##??## | | ????????????????? ?#### #??# | | ????????????????##### #?# """ #### | | ????????????????????# ??# ### """ | | ????????????????????#???#???# """ ###### | | ????????????????????????????# ####????? | | ????????????????????????? ##???????# | | ????????????????????????#### ##???????## | | ???????????????????????????## ######???## | | ????????????????????????????###### ##### | | ???????????????????????????????## | | ?????????????????????????####??# | | ?????????????????####???## #### # | | ????????????????## ##### ## ## | | ????????????????# % ### ##? | | ????????????????# < ##?## #?? | | ????????????????# d ### ##???# #?? | | ????????????????## #?# ###???# ? | | ???????????????### u##### #????# #### | | ??????????????## # ###### #???# ##??? | | ?????????????## d #???# #???# ????? | | ?????????????# #??? #???# ????? | | ?????????????# #?? #???## ????? | | ?????????????# #?? ####????###????? | | ?????????????# @ ##? ???????????????? | | ?????????????# #?? ???????????????? | | ????????????# #? ????????????????? | | ???????????## ##? ????????????????? | | ??????????? #????????????????????? | | ????????? ##????????????????????? | | ??????? < #?????????????????????? | | ??????## #####?????????????????????? | | ???????## #####??????????????????????????? | | ????????###???????????????????????????????? | | ??????????????????????????????????????????? | | ??????????????????????????????????????????? | | ??????????????????????????????????????????? | | ??????????????????????????????????????????? | | ??????????????????????????????????????????? | | ??????????????????????????????????????????? | | ??????????????????????????????????????????? | | ??????????????????????????????????????????? | | ??????????????????????????????????????????? | | ??????????????????????????????????????????? | | ??????????????????????????????????????????? | | ??????????????????????????????????????????? | | ??????????????????????????????????????????? | | ??????????????????????????????????????????? | | ??????????????????????????????????????????? | +----------------------------------------------------+ Best States ------------- Heat Dissipation 35 Energy Generation 10 Energy Capacity 250 Matter Stores 300 Matter Capacity 300 Sight Range 16 Terrain Scan Range 16 Terrain Scan Density 10 Armor Coverage 150 Resistance: KI 20 Resistance: TH 20 Resistance: EX 20 Resistance: EM 20 Resistance: I 20 Resistance: S 20 Resistance: P 20 Weapon Shielding 33 Evasion (%) 62 Offensive Hacking 10 Item Schematics ----------------- None Robot Schematics ------------------ None Fabricated ------------ Nothing Alien Tech Used ----------------- None Achievements -------------- First Step to Greatness Challenges ------------ None Game ------ Seed OpticalDeepMinigun Manual? 0 Play Time 00:36:04 Cumulative 4.4 hours Start 2022.11.06 @ 23:54:17 End 2022.11.07 @ 00:32:51 Sessions 1 Manual Loads 0 Difficulty Adventurer Special Mode None Game No. 6 Rogue 2 Adventurer 4 Explorer 0 Win Type - Total 0 Types 0/0/0/0/0/0/0/0/0 Lore% 5 Gallery% 5 Achievement% 5 Wizard Run 0 Options --------- ASCII 0 Keyboard 0 Movement Mouse Keybinds 0 Fullscreen 1 Font 18/SmallcapsGlow Map View 76x50 Tactical HUD 0 Map Filters NONE Filters NONE Steam 1 RUN: f6c8d9c1-314f-4ed8-9283-67d149f88afc